[Event "Titled Tuesday Blitz August 08 Late 2023"]
[White "Fiorito, Joaquin"]
[Black "Willy, Stephen"]
[WhiteFideId "180173"]
[BlackFideId "30981468"]
[WhiteElo "2708"]
[BlackElo "2510"]
[Result "0-1"]
[Round "4"]
[TimeControl "180+1"]
[Date "2023.08.08"]
[WhiteClock "0:00:32"]
[BlackClock "0:01:15"]
[Board "65"]

1. d4 {[%clk 0:02:59]}  Nf6 {[%clk 0:02:59]} 2. c4 {[%clk 0:02:59]}  e6 {[%clk 0:02:59]} 3. Nc3 {[%clk 0:02:59]}  Bb4 {[%clk 0:03:00]} 4. e3 {[%clk 0:02:59]}  c5 {[%clk 0:02:58]} 5. Ne2 {[%clk 0:02:57]}  d5 {[%clk 0:02:55]} 6. a3 {[%clk 0:02:55]}  Bxc3+ {[%clk 0:02:51]} 7. Nxc3 {[%clk 0:02:55]}  cxd4 {[%clk 0:02:46]} 8. exd4 {[%clk 0:02:54]}  dxc4 {[%clk 0:02:44]} 9. Bxc4 {[%clk 0:02:54]}  O-O {[%clk 0:02:42]} 10. O-O {[%clk 0:02:54]}  Bd7 {[%clk 0:02:27]} 11. Be3 {[%clk 0:02:49]}  Bc6 {[%clk 0:02:27]} 12. Qe2 {[%clk 0:02:50]}  Nbd7 {[%clk 0:02:26]} 13. Rad1 {[%clk 0:02:46]}  Nb6 {[%clk 0:02:26]} 14. Bd3 {[%clk 0:02:46]}  Nbd5 {[%clk 0:02:26]} 15. Bd2 {[%clk 0:02:44]}  Qd6 {[%clk 0:02:08]} 16. Rfe1 {[%clk 0:02:43]}  Nf4 {[%clk 0:02:06]} 17. Bxf4 {[%clk 0:02:39]}  Qxf4 {[%clk 0:02:07]} 18. Qe3 {[%clk 0:02:31]}  Qh4 {[%clk 0:01:56]} 19. h3 {[%clk 0:02:08]}  Rad8 {[%clk 0:01:53]} 20. Bb1 {[%clk 0:02:07]}  Nd5 {[%clk 0:01:48]} 21. Nxd5 {[%clk 0:01:51]}  Bxd5 {[%clk 0:01:43]} 22. Rc1 {[%clk 0:01:51]}  Rc8 {[%clk 0:01:41]} 23. Red1 {[%clk 0:01:26]}  g6 {[%clk 0:01:36]} 24. Rc5 {[%clk 0:01:09]}  b6 {[%clk 0:01:33]} 25. Rc3 {[%clk 0:01:06]}  Rxc3 {[%clk 0:01:25]} 26. Qxc3 {[%clk 0:01:07]}  Qg5 {[%clk 0:01:22]} 27. f3 {[%clk 0:01:04]}  Bb7 {[%clk 0:01:15]} 28. Qc7 {[%clk 0:00:32]}  Bxf3 {[%clk 0:01:15]} 0-1


[Site "https://www.chess.com"]

[Event "Titled Tuesday Blitz August 08 Late 2023"]
[White "Grinev, Valeriy"]
[Black "Papasimakopoulos, Alexandros"]
[WhiteFideId "14117517"]
[BlackFideId "4244125"]
[WhiteElo "2509"]
[BlackElo "2703"]
[Result "0-1"]
[Round "4"]
[TimeControl "180+1"]
[Date "2023.08.08"]
[WhiteClock "0:00:09"]
[BlackClock "0:02:09"]
[Board "66"]

1. e4 {[%clk 0:02:54]}  e6 {[%clk 0:02:58]} 2. d4 {[%clk 0:02:54]}  d5 {[%clk 0:02:58]} 3. e5 {[%clk 0:02:53]}  Bd7 {[%clk 0:02:56]} 4. Nf3 {[%clk 0:02:51]}  a6 {[%clk 0:02:56]} 5. a4 {[%clk 0:02:50]}  c5 {[%clk 0:02:56]} 6. c3 {[%clk 0:02:48]}  Qb6 {[%clk 0:02:56]} 7. a5 {[%clk 0:02:48]}  Qd8 {[%clk 0:02:51]} 8. dxc5 {[%clk 0:02:42]}  Bxc5 {[%clk 0:02:52]} 9. b4 {[%clk 0:02:42]}  Ba7 {[%clk 0:02:52]} 10. Bd3 {[%clk 0:02:40]}  Ne7 {[%clk 0:02:52]} 11. O-O {[%clk 0:02:40]}  Nbc6 {[%clk 0:02:52]} 12. Bf4 {[%clk 0:02:35]}  Ng6 {[%clk 0:02:50]} 13. Bg3 {[%clk 0:02:35]}  Rc8 {[%clk 0:02:50]} 14. Qe2 {[%clk 0:02:32]}  Bb8 {[%clk 0:02:43]} 15. Re1 {[%clk 0:02:28]}  Na7 {[%clk 0:02:43]} 16. h4 {[%clk 0:02:24]}  Ne7 {[%clk 0:02:42]} 17. h5 {[%clk 0:02:23]}  h6 {[%clk 0:02:42]} 18. Nd4 {[%clk 0:02:19]}  O-O {[%clk 0:02:41]} 19. Ra2 {[%clk 0:01:57]}  Nec6 {[%clk 0:02:40]} 20. Nb3 {[%clk 0:01:46]}  Ne7 {[%clk 0:02:38]} 21. Nc5 {[%clk 0:01:45]}  Qc7 {[%clk 0:02:36]} 22. Nd2 {[%clk 0:01:42]}  Bb5 {[%clk 0:02:36]} 23. Ndb3 {[%clk 0:01:40]}  Bxd3 {[%clk 0:02:36]} 24. Qxd3 {[%clk 0:01:40]}  Nb5 {[%clk 0:02:37]} 25. Rc2 {[%clk 0:01:38]}  Nf5 {[%clk 0:02:36]} 26. Bf4 {[%clk 0:01:36]}  Ba7 {[%clk 0:02:36]} 27. g4 {[%clk 0:01:36]}  Ne7 {[%clk 0:02:35]} 28. Kg2 {[%clk 0:01:35]}  Qc6 {[%clk 0:02:25]} 29. f3 {[%clk 0:01:30]}  Na3 {[%clk 0:02:25]} 30. Rcc1 {[%clk 0:01:28]}  Nb5 {[%clk 0:02:24]} 31. Bg3 {[%clk 0:01:24]}  b6 {[%clk 0:02:21]} 32. axb6 {[%clk 0:01:16]}  Bxb6 {[%clk 0:02:22]} 33. Nxa6 {[%clk 0:01:15]}  Ra8 {[%clk 0:02:22]} 34. Nac5 {[%clk 0:01:14]}  Ra2+ {[%clk 0:02:20]} 35. Rc2 {[%clk 0:01:13]}  Rfa8 {[%clk 0:02:19]} 36. Ree2 {[%clk 0:01:12]}  R2a3 {[%clk 0:02:19]} 37. Kh3 {[%clk 0:01:00]}  Bxc5 {[%clk 0:02:19]} 38. Nxc5 {[%clk 0:00:59]}  d4 {[%clk 0:02:19]} 39. Ne4 {[%clk 0:00:30]}  Nd5 {[%clk 0:02:12]} 40. cxd4 {[%clk 0:00:20]}  Rxd3 {[%clk 0:02:13]} 41. Rxc6 {[%clk 0:00:19]}  Nxd4 {[%clk 0:02:13]} 42. Rec2 {[%clk 0:00:18]}  Nxc2 {[%clk 0:02:13]} 43. Rxc2 {[%clk 0:00:17]}  Rxf3 {[%clk 0:02:13]} 44. Rc6 {[%clk 0:00:15]}  Nxb4 {[%clk 0:02:12]} 45. Rc7 {[%clk 0:00:14]}  Nd5 {[%clk 0:02:12]} 46. Rb7 {[%clk 0:00:14]}  Re3 {[%clk 0:02:12]} 47. Nd6 {[%clk 0:00:14]}  Raa3 {[%clk 0:02:12]} 48. Rb8+ {[%clk 0:00:14]}  Kh7 {[%clk 0:02:11]} 49. Nxf7 {[%clk 0:00:14]}  Rxg3+ {[%clk 0:02:11]} 50. Kh2 {[%clk 0:00:15]}  g6 {[%clk 0:02:09]} 51. hxg6+ {[%clk 0:00:13]}  Kxg6 {[%clk 0:02:09]} 52. Nh8+ {[%clk 0:00:12]}  Kg5 {[%clk 0:02:08]} 53. Rg8+ {[%clk 0:00:11]}  Kf4 {[%clk 0:02:08]} 54. Ng6+ {[%clk 0:00:11]}  Ke4 {[%clk 0:02:08]} 55. Nf8 {[%clk 0:00:09]}  Rgb3 {[%clk 0:02:07]} 56. Nxe6 {[%clk 0:00:08]}  Rb2+ {[%clk 0:02:08]} 57. Kg1 {[%clk 0:00:09]}  Ra1# {[%clk 0:02:09]} 0-1


[Site "https://www.chess.com"]

[Event "Titled Tuesday Blitz August 08 Late 2023"]
[White "Toncheva, Nadya"]
[Black "Matinian, Nikita"]
[WhiteFideId "2924056"]
[BlackFideId "24129100"]
[WhiteElo "2505"]
[BlackElo "2696"]
[Result "0-1"]
[Round "4"]
[TimeControl "180+1"]
[Date "2023.08.08"]
[WhiteClock "0:00:12"]
[BlackClock "0:00:21"]
[Board "68"]

1. d4 {[%clk 0:03:00]}  Nf6 {[%clk 0:02:58]} 2. c4 {[%clk 0:03:01]}  g6 {[%clk 0:02:58]} 3. Nc3 {[%clk 0:03:01]}  Bg7 {[%clk 0:02:59]} 4. e4 {[%clk 0:03:01]}  d6 {[%clk 0:02:59]} 5. Be2 {[%clk 0:03:02]}  O-O {[%clk 0:02:57]} 6. Bg5 {[%clk 0:03:02]}  c5 {[%clk 0:02:55]} 7. d5 {[%clk 0:03:01]}  e5 {[%clk 0:02:49]} 8. Qd2 {[%clk 0:02:53]}  a6 {[%clk 0:02:47]} 9. h4 {[%clk 0:02:42]}  h5 {[%clk 0:02:46]} 10. f3 {[%clk 0:02:29]}  b5 {[%clk 0:02:46]} 11. cxb5 {[%clk 0:02:26]}  axb5 {[%clk 0:02:47]} 12. Bxb5 {[%clk 0:02:25]}  Qa5 {[%clk 0:02:44]} 13. Nge2 {[%clk 0:02:21]}  Ba6 {[%clk 0:02:40]} 14. Bxa6 {[%clk 0:02:16]}  Nxa6 {[%clk 0:02:36]} 15. O-O {[%clk 0:02:13]}  Rfb8 {[%clk 0:02:36]} 16. b3 {[%clk 0:02:07]}  Nd7 {[%clk 0:02:24]} 17. Nd1 {[%clk 0:01:44]}  Qxd2 {[%clk 0:02:13]} 18. Bxd2 {[%clk 0:01:44]}  Nb4 {[%clk 0:02:14]} 19. Nec3 {[%clk 0:01:37]}  Nc2 {[%clk 0:02:10]} 20. Rc1 {[%clk 0:01:35]}  Nb4 {[%clk 0:02:02]} 21. Ra1 {[%clk 0:01:28]}  Bf6 {[%clk 0:01:59]} 22. g3 {[%clk 0:01:21]}  Nc2 {[%clk 0:01:40]} 23. Rb1 {[%clk 0:01:21]}  Nd4 {[%clk 0:01:39]} 24. Nb2 {[%clk 0:01:13]}  Nb6 {[%clk 0:01:34]} 25. Nc4 {[%clk 0:01:06]}  Nxc4 {[%clk 0:01:34]} 26. bxc4 {[%clk 0:01:07]}  Rb4 {[%clk 0:01:34]} 27. Rxb4 {[%clk 0:00:52]}  cxb4 {[%clk 0:01:35]} 28. Nb5 {[%clk 0:00:51]}  Rxa2 {[%clk 0:01:32]} 29. Nxd4 {[%clk 0:00:47]}  exd4 {[%clk 0:01:18]} 30. Bxb4 {[%clk 0:00:45]}  d3 {[%clk 0:01:18]} 31. Rd1 {[%clk 0:00:43]}  Be5 {[%clk 0:00:46]} 32. f4 {[%clk 0:00:31]}  Bd4+ {[%clk 0:00:46]} 33. Kh1 {[%clk 0:00:32]}  Ra1 {[%clk 0:00:29]} 34. Rxa1 {[%clk 0:00:31]}  Bxa1 {[%clk 0:00:30]} 35. Bd2 {[%clk 0:00:32]}  f5 {[%clk 0:00:24]} 36. Kg2 {[%clk 0:00:33]}  fxe4 {[%clk 0:00:24]} 37. Be3 {[%clk 0:00:20]}  Bd4 {[%clk 0:00:21]} 38. Kf2 {[%clk 0:00:12]}  d2 {[%clk 0:00:21]} 0-1


[Site "https://www.chess.com"]

[Event "Titled Tuesday Blitz August 08 Late 2023"]
[White "Sokolovsky, Yahli"]
[Black "Cheer_Down"]
[WhiteFideId "2820242"]
[WhiteElo "2694"]
[BlackElo "2476"]
[Result "1-0"]
[Round "4"]
[TimeControl "180+1"]
[Date "2023.08.08"]
[WhiteClock "0:00:07"]
[BlackClock "0:00:05"]
[Board "69"]

1. b3 {[%clk 0:03:00]}  e5 {[%clk 0:02:59]} 2. Bb2 {[%clk 0:03:01]}  Nc6 {[%clk 0:02:59]} 3. e3 {[%clk 0:03:02]}  d5 {[%clk 0:02:59]} 4. Nf3 {[%clk 0:03:02]}  e4 {[%clk 0:02:55]} 5. Nd4 {[%clk 0:03:03]}  Nxd4 {[%clk 0:02:52]} 6. Bxd4 {[%clk 0:03:04]}  Nf6 {[%clk 0:02:45]} 7. c4 {[%clk 0:03:04]}  c6 {[%clk 0:02:39]} 8. Nc3 {[%clk 0:02:58]}  Be7 {[%clk 0:02:39]} 9. cxd5 {[%clk 0:02:42]}  cxd5 {[%clk 0:02:38]} 10. Rc1 {[%clk 0:02:43]}  O-O {[%clk 0:02:32]} 11. Be2 {[%clk 0:02:42]}  Be6 {[%clk 0:02:14]} 12. O-O {[%clk 0:02:42]}  a6 {[%clk 0:02:02]} 13. f3 {[%clk 0:02:42]}  exf3 {[%clk 0:01:57]} 14. Bxf3 {[%clk 0:02:43]}  Rc8 {[%clk 0:01:56]} 15. Bxf6 {[%clk 0:01:56]}  Bxf6 {[%clk 0:01:55]} 16. Nxd5 {[%clk 0:01:57]}  Rxc1 {[%clk 0:01:51]} 17. Nxf6+ {[%clk 0:01:56]}  Qxf6 {[%clk 0:01:50]} 18. Qxc1 {[%clk 0:01:57]}  Rc8 {[%clk 0:01:49]} 19. Qb1 {[%clk 0:01:28]}  Qe7 {[%clk 0:01:23]} 20. Rc1 {[%clk 0:01:28]}  Rc7 {[%clk 0:01:21]} 21. Rxc7 {[%clk 0:01:14]}  Qxc7 {[%clk 0:01:22]} 22. Be4 {[%clk 0:01:15]}  g6 {[%clk 0:01:16]} 23. Qc2 {[%clk 0:01:15]}  Qd7 {[%clk 0:01:10]} 24. Qd3 {[%clk 0:01:02]}  Qc7 {[%clk 0:01:07]} 25. Qc3 {[%clk 0:01:02]}  Qd7 {[%clk 0:01:06]} 26. Bf3 {[%clk 0:00:52]}  b6 {[%clk 0:01:02]} 27. d4 {[%clk 0:00:47]}  Bg4 {[%clk 0:00:57]} 28. Bxg4 {[%clk 0:00:38]}  Qxg4 {[%clk 0:00:57]} 29. Qd3 {[%clk 0:00:39]}  b5 {[%clk 0:00:37]} 30. d5 {[%clk 0:00:40]}  Kf8 {[%clk 0:00:35]} 31. e4 {[%clk 0:00:38]}  Qf4 {[%clk 0:00:34]} 32. g3 {[%clk 0:00:21]}  Qe5 {[%clk 0:00:32]} 33. Qc2 {[%clk 0:00:18]}  Qd4+ {[%clk 0:00:30]} 34. Kg2 {[%clk 0:00:17]}  h5 {[%clk 0:00:29]} 35. Kf3 {[%clk 0:00:15]}  g5 {[%clk 0:00:28]} 36. h3 {[%clk 0:00:12]}  Kg7 {[%clk 0:00:20]} 37. g4 {[%clk 0:00:09]}  h4 {[%clk 0:00:19]} 38. Qe2 {[%clk 0:00:07]}  Qe5 {[%clk 0:00:19]} 39. Qe3 {[%clk 0:00:07]}  Qg3+ {[%clk 0:00:18]} 40. Ke2 {[%clk 0:00:08]}  Qg2+ {[%clk 0:00:17]} 41. Kd3 {[%clk 0:00:07]}  Qf1+ {[%clk 0:00:17]} 42. Kd4 {[%clk 0:00:07]}  Qa1+ {[%clk 0:00:15]} 43. Kc5 {[%clk 0:00:07]}  f6 {[%clk 0:00:15]} 44. d6 {[%clk 0:00:06]}  Qe5+ {[%clk 0:00:12]} 45. Kc6 {[%clk 0:00:06]}  Kf7 {[%clk 0:00:12]} 46. Qa7+ {[%clk 0:00:06]}  Kg6 {[%clk 0:00:11]} 47. Qe7 {[%clk 0:00:07]}  Qc3+ {[%clk 0:00:10]} 48. Kb7 {[%clk 0:00:07]}  Qc5 {[%clk 0:00:10]} 49. Qe8+ {[%clk 0:00:06]}  Kg7 {[%clk 0:00:05]} 50. d7 {[%clk 0:00:07]} 1-0


[Site "https://www.chess.com"]

[Event "Titled Tuesday Blitz August 08 Late 2023"]
[White "KarolKacprzak"]
[Black "Sathish, Pranav"]
[BlackFideId "30967538"]
[WhiteElo "2693"]
[BlackElo "2472"]
[Result "1/2-1/2"]
[Round "4"]
[TimeControl "180+1"]
[Date "2023.08.08"]
[WhiteClock "0:00:13"]
[BlackClock "0:00:22"]
[Board "70"]

1. Nf3 {[%clk 0:03:00]}  d5 {[%clk 0:02:58]} 2. b3 {[%clk 0:03:00]}  Bg4 {[%clk 0:02:57]} 3. Bb2 {[%clk 0:02:58]}  Nd7 {[%clk 0:02:56]} 4. e3 {[%clk 0:02:48]}  e5 {[%clk 0:02:52]} 5. Be2 {[%clk 0:02:48]}  Bd6 {[%clk 0:02:40]} 6. d4 {[%clk 0:02:37]}  e4 {[%clk 0:02:38]} 7. Ne5 {[%clk 0:02:37]}  Bxe2 {[%clk 0:02:37]} 8. Qxe2 {[%clk 0:02:38]}  c6 {[%clk 0:02:36]} 9. O-O {[%clk 0:02:34]}  Ngf6 {[%clk 0:02:29]} 10. c4 {[%clk 0:02:32]}  Qe7 {[%clk 0:02:14]} 11. cxd5 {[%clk 0:02:30]}  Nxd5 {[%clk 0:02:10]} 12. Nxd7 {[%clk 0:02:21]}  Qxd7 {[%clk 0:02:08]} 13. Nc3 {[%clk 0:02:18]}  Nxc3 {[%clk 0:02:07]} 14. Bxc3 {[%clk 0:02:19]}  O-O {[%clk 0:02:05]} 15. Qh5 {[%clk 0:02:11]}  f5 {[%clk 0:02:02]} 16. Rad1 {[%clk 0:02:02]}  Qe6 {[%clk 0:01:58]} 17. Rd2 {[%clk 0:01:58]}  Qd5 {[%clk 0:01:57]} 18. Bb2 {[%clk 0:01:54]}  f4 {[%clk 0:01:40]} 19. Qxd5+ {[%clk 0:01:45]}  cxd5 {[%clk 0:01:38]} 20. Rc1 {[%clk 0:01:44]}  fxe3 {[%clk 0:01:29]} 21. fxe3 {[%clk 0:01:45]}  Rfc8 {[%clk 0:01:29]} 22. Rdc2 {[%clk 0:01:42]}  Rxc2 {[%clk 0:01:28]} 23. Rxc2 {[%clk 0:01:43]}  Kf7 {[%clk 0:01:28]} 24. Bc1 {[%clk 0:01:41]}  Ke6 {[%clk 0:01:28]} 25. h3 {[%clk 0:01:29]}  Kd7 {[%clk 0:01:25]} 26. Kf2 {[%clk 0:01:27]}  Rc8 {[%clk 0:01:23]} 27. Rxc8 {[%clk 0:01:27]}  Kxc8 {[%clk 0:01:23]} 28. Bd2 {[%clk 0:01:20]}  Kd7 {[%clk 0:01:22]} 29. Ke2 {[%clk 0:01:20]}  Ke6 {[%clk 0:01:22]} 30. Be1 {[%clk 0:01:20]}  g5 {[%clk 0:01:20]} 31. g4 {[%clk 0:01:20]}  h6 {[%clk 0:01:19]} 32. Kd1 {[%clk 0:01:18]}  b5 {[%clk 0:01:18]} 33. a4 {[%clk 0:01:15]}  a6 {[%clk 0:01:13]} 34. Ba5 {[%clk 0:01:10]}  Kd7 {[%clk 0:01:05]} 35. Kd2 {[%clk 0:01:10]}  b4 {[%clk 0:00:58]} 36. Bb6 {[%clk 0:01:08]}  Ke7 {[%clk 0:00:52]} 37. Kc2 {[%clk 0:01:03]}  Kd7 {[%clk 0:00:51]} 38. Kd2 {[%clk 0:01:00]}  Be7 {[%clk 0:00:50]} 39. Ke2 {[%clk 0:00:56]}  Kc6 {[%clk 0:00:47]} 40. Ba5 {[%clk 0:00:55]}  Kd7 {[%clk 0:00:45]} 41. Kf2 {[%clk 0:00:55]}  Kc6 {[%clk 0:00:44]} 42. Kg3 {[%clk 0:00:54]}  Bd6+ {[%clk 0:00:43]} 43. Kg2 {[%clk 0:00:54]}  Be7 {[%clk 0:00:43]} 44. Kf1 {[%clk 0:00:51]}  Kd7 {[%clk 0:00:43]} 45. Ke2 {[%clk 0:00:42]}  Kc6 {[%clk 0:00:43]} 46. Kd2 {[%clk 0:00:42]}  Kd7 {[%clk 0:00:44]} 47. Ke2 {[%clk 0:00:42]}  Kc6 {[%clk 0:00:44]} 48. Kd1 {[%clk 0:00:42]}  Kd7 {[%clk 0:00:44]} 49. Kc2 {[%clk 0:00:43]}  Kc6 {[%clk 0:00:43]} 50. Kb1 {[%clk 0:00:43]}  Kd7 {[%clk 0:00:43]} 51. Kb2 {[%clk 0:00:44]}  Kc6 {[%clk 0:00:43]} 52. Ka1 {[%clk 0:00:45]}  Kd7 {[%clk 0:00:43]} 53. Ka2 {[%clk 0:00:45]}  Kc6 {[%clk 0:00:43]} 54. Kb1 {[%clk 0:00:46]}  Kd7 {[%clk 0:00:42]} 55. Kb2 {[%clk 0:00:46]}  Bd6 {[%clk 0:00:42]} 56. Kc1 {[%clk 0:00:46]}  Kc6 {[%clk 0:00:42]} 57. Bd8 {[%clk 0:00:44]}  Bf8 {[%clk 0:00:42]} 58. Bf6 {[%clk 0:00:43]}  Kd7 {[%clk 0:00:42]} 59. Kc2 {[%clk 0:00:42]}  Ke6 {[%clk 0:00:39]} 60. Be5 {[%clk 0:00:42]}  Kf7 {[%clk 0:00:39]} 61. Kd1 {[%clk 0:00:41]}  Bg7 {[%clk 0:00:38]} 62. Bd6 {[%clk 0:00:37]}  Bf8 {[%clk 0:00:37]} 63. Bc7 {[%clk 0:00:37]}  Ke8 {[%clk 0:00:34]} 64. Ke2 {[%clk 0:00:36]}  Kd7 {[%clk 0:00:33]} 65. Be5 {[%clk 0:00:37]}  Ke8 {[%clk 0:00:34]} 66. Kf1 {[%clk 0:00:37]}  Kf7 {[%clk 0:00:34]} 67. Kg2 {[%clk 0:00:37]}  Bg7 {[%clk 0:00:34]} 68. Bd6 {[%clk 0:00:35]}  Bf8 {[%clk 0:00:34]} 69. Bc7 {[%clk 0:00:35]}  Ke6 {[%clk 0:00:33]} 70. Be5 {[%clk 0:00:34]}  Kf7 {[%clk 0:00:32]} 71. h4 {[%clk 0:00:32]}  Bg7 {[%clk 0:00:30]} 72. Bd6 {[%clk 0:00:27]}  Bf8 {[%clk 0:00:29]} 73. Bc7 {[%clk 0:00:28]}  Ke6 {[%clk 0:00:27]} 74. Kh3 {[%clk 0:00:24]}  Kd7 {[%clk 0:00:25]} 75. Be5 {[%clk 0:00:24]}  Ke6 {[%clk 0:00:25]} 76. Bb8 {[%clk 0:00:22]}  Be7 {[%clk 0:00:25]} 77. Bc7 {[%clk 0:00:21]}  Bf8 {[%clk 0:00:24]} 78. Bd8 {[%clk 0:00:19]}  Be7 {[%clk 0:00:23]} 79. Ba5 {[%clk 0:00:18]}  Bf8 {[%clk 0:00:22]} 80. Bb6 {[%clk 0:00:17]}  Be7 {[%clk 0:00:22]} 81. Bc7 {[%clk 0:00:15]}  Bd6 {[%clk 0:00:22]} 82. Bd8 {[%clk 0:00:14]}  Be7 {[%clk 0:00:22]} 83. Bc7 {[%clk 0:00:13]} 1/2-1/2


[Site "https://www.chess.com"]

[Event "Titled Tuesday Blitz August 08 Late 2023"]
[White "Rastbod, Ali"]
[Black "Kielinkei"]
[WhiteFideId "12567477"]
[WhiteElo "2688"]
[BlackElo "2452"]
[Result "1-0"]
[Round "4"]
[TimeControl "180+1"]
[Date "2023.08.08"]
[WhiteClock "0:00:23"]
[BlackClock "0:00:06"]
[Board "72"]

1. e4 {[%clk 0:02:59]}  c5 {[%clk 0:02:59]} 2. Nc3 {[%clk 0:02:57]}  a6 {[%clk 0:02:58]} 3. d4 {[%clk 0:02:54]}  cxd4 {[%clk 0:02:58]} 4. Qxd4 {[%clk 0:02:55]}  Nc6 {[%clk 0:02:58]} 5. Qe3 {[%clk 0:02:55]}  d6 {[%clk 0:02:46]} 6. b3 {[%clk 0:02:51]}  Nf6 {[%clk 0:02:45]} 7. Bb2 {[%clk 0:02:51]}  g6 {[%clk 0:02:23]} 8. O-O-O {[%clk 0:02:48]}  Bg7 {[%clk 0:02:23]} 9. Kb1 {[%clk 0:02:48]}  O-O {[%clk 0:02:22]} 10. h3 {[%clk 0:02:45]}  Qc7 {[%clk 0:02:14]} 11. f4 {[%clk 0:02:27]}  e5 {[%clk 0:02:09]} 12. Nf3 {[%clk 0:02:21]}  exf4 {[%clk 0:02:02]} 13. Qxf4 {[%clk 0:02:22]}  Ne5 {[%clk 0:01:57]} 14. Nxe5 {[%clk 0:02:13]}  dxe5 {[%clk 0:01:57]} 15. Qf3 {[%clk 0:02:07]}  Be6 {[%clk 0:01:51]} 16. g4 {[%clk 0:02:07]}  Rac8 {[%clk 0:01:44]} 17. Rh2 {[%clk 0:01:58]}  b5 {[%clk 0:01:42]} 18. Rhd2 {[%clk 0:01:45]}  Rfd8 {[%clk 0:01:24]} 19. g5 {[%clk 0:01:32]}  Rxd2 {[%clk 0:01:13]} 20. Rxd2 {[%clk 0:01:30]}  Nh5 {[%clk 0:01:14]} 21. Ne2 {[%clk 0:00:54]}  b4 {[%clk 0:01:13]} 22. h4 {[%clk 0:00:54]}  a5 {[%clk 0:01:11]} 23. Bh3 {[%clk 0:00:54]}  Bxh3 {[%clk 0:00:58]} 24. Qxh3 {[%clk 0:00:55]}  a4 {[%clk 0:00:59]} 25. Qd7 {[%clk 0:00:50]}  axb3 {[%clk 0:00:39]} 26. Qxc7 {[%clk 0:00:39]}  bxa2+ {[%clk 0:00:39]} 27. Kxa2 {[%clk 0:00:39]}  Rxc7 {[%clk 0:00:39]} 28. Rd8+ {[%clk 0:00:39]}  Bf8 {[%clk 0:00:40]} 29. Bxe5 {[%clk 0:00:40]}  Ra7+ {[%clk 0:00:37]} 30. Kb1 {[%clk 0:00:33]}  Ng7 {[%clk 0:00:26]} 31. Nf4 {[%clk 0:00:30]}  Ne6 {[%clk 0:00:09]} 32. Nxe6 {[%clk 0:00:31]}  fxe6 {[%clk 0:00:09]} 33. Bd6 {[%clk 0:00:32]}  Rf7 {[%clk 0:00:09]} 34. Kb2 {[%clk 0:00:32]}  Kg7 {[%clk 0:00:09]} 35. Bxf8+ {[%clk 0:00:28]}  Rxf8 {[%clk 0:00:08]} 36. Rxf8 {[%clk 0:00:29]}  Kxf8 {[%clk 0:00:09]} 37. Kb3 {[%clk 0:00:29]}  Ke7 {[%clk 0:00:08]} 38. e5 {[%clk 0:00:21]}  Kd7 {[%clk 0:00:06]} 39. Kxb4 {[%clk 0:00:22]}  Kc6 {[%clk 0:00:07]} 40. c4 {[%clk 0:00:21]}  Kb6 {[%clk 0:00:07]} 41. c5+ {[%clk 0:00:21]}  Kc6 {[%clk 0:00:07]} 42. Kc4 {[%clk 0:00:22]}  Kc7 {[%clk 0:00:06]} 43. Kb5 {[%clk 0:00:23]} 1-0


[Site "https://www.chess.com"]

[Event "Titled Tuesday Blitz August 08 Late 2023"]
[White "GaiozNigalidze"]
[Black "Fisher_TheGalactic"]
[WhiteElo "2417"]
[BlackElo "2668"]
[Result "1-0"]
[Round "4"]
[TimeControl "180+1"]
[Date "2023.08.08"]
[WhiteClock "0:00:17"]
[BlackClock "0:00:02"]
[Board "74"]

1. c4 {[%clk 0:03:00]}  c5 {[%clk 0:02:58]} 2. Nf3 {[%clk 0:03:01]}  Nf6 {[%clk 0:02:57]} 3. g3 {[%clk 0:03:01]}  Nc6 {[%clk 0:02:58]} 4. Bg2 {[%clk 0:03:01]}  e6 {[%clk 0:02:58]} 5. O-O {[%clk 0:03:01]}  Be7 {[%clk 0:02:59]} 6. Nc3 {[%clk 0:03:01]}  O-O {[%clk 0:03:00]} 7. d4 {[%clk 0:03:02]}  d5 {[%clk 0:02:46]} 8. cxd5 {[%clk 0:03:00]}  Nxd5 {[%clk 0:02:45]} 9. Nxd5 {[%clk 0:02:55]}  exd5 {[%clk 0:02:45]} 10. dxc5 {[%clk 0:02:51]}  Bxc5 {[%clk 0:02:46]} 11. Bf4 {[%clk 0:02:51]}  Bf5 {[%clk 0:02:37]} 12. Rc1 {[%clk 0:02:43]}  Bb6 {[%clk 0:02:25]} 13. Ne1 {[%clk 0:02:29]}  Be4 {[%clk 0:02:23]} 14. Nd3 {[%clk 0:02:26]}  Qe7 {[%clk 0:02:18]} 15. a3 {[%clk 0:02:23]}  Rfe8 {[%clk 0:02:17]} 16. Re1 {[%clk 0:02:21]}  Rad8 {[%clk 0:02:14]} 17. b4 {[%clk 0:02:19]}  Nd4 {[%clk 0:02:02]} 18. Be3 {[%clk 0:02:05]}  Bxg2 {[%clk 0:01:40]} 19. Kxg2 {[%clk 0:02:06]}  Qe4+ {[%clk 0:01:06]} 20. Kg1 {[%clk 0:02:05]}  Nxe2+ {[%clk 0:01:02]} 21. Qxe2 {[%clk 0:01:31]}  d4 {[%clk 0:01:02]} 22. Bg5 {[%clk 0:01:24]}  Qxe2 {[%clk 0:00:49]} 23. Rxe2 {[%clk 0:01:25]}  Rxe2 {[%clk 0:00:48]} 24. Bxd8 {[%clk 0:01:24]}  Bxd8 {[%clk 0:00:49]} 25. Rc8 {[%clk 0:01:21]}  Re8 {[%clk 0:00:50]} 26. Rb8 {[%clk 0:01:19]}  b6 {[%clk 0:00:43]} 27. Ra8 {[%clk 0:01:16]}  a5 {[%clk 0:00:40]} 28. Kg2 {[%clk 0:01:08]}  Kf8 {[%clk 0:00:40]} 29. Kf3 {[%clk 0:01:08]}  axb4 {[%clk 0:00:39]} 30. axb4 {[%clk 0:01:07]}  g6 {[%clk 0:00:31]} 31. h4 {[%clk 0:01:03]}  h5 {[%clk 0:00:30]} 32. Ra7 {[%clk 0:01:02]}  Re7 {[%clk 0:00:24]} 33. Ra8 {[%clk 0:01:00]}  Re8 {[%clk 0:00:24]} 34. Ra7 {[%clk 0:01:00]}  Re6 {[%clk 0:00:21]} 35. Nf4 {[%clk 0:00:46]}  Rd6 {[%clk 0:00:20]} 36. Ke4 {[%clk 0:00:42]}  Kg7 {[%clk 0:00:17]} 37. Rb7 {[%clk 0:00:40]}  Bf6 {[%clk 0:00:15]} 38. b5 {[%clk 0:00:39]}  Bd8 {[%clk 0:00:04]} 39. Ra7 {[%clk 0:00:35]}  Bf6 {[%clk 0:00:04]} 40. Rc7 {[%clk 0:00:35]}  Rd8 {[%clk 0:00:04]} 41. Rc6 {[%clk 0:00:34]}  Re8+ {[%clk 0:00:04]} 42. Kd3 {[%clk 0:00:34]}  Rb8 {[%clk 0:00:03]} 43. Nd5 {[%clk 0:00:34]}  Bd8 {[%clk 0:00:03]} 44. Kxd4 {[%clk 0:00:35]}  Ra8 {[%clk 0:00:03]} 45. Nxb6 {[%clk 0:00:33]}  Ra2 {[%clk 0:00:04]} 46. Nc4 {[%clk 0:00:26]}  Rxf2 {[%clk 0:00:04]} 47. Rc8 {[%clk 0:00:27]}  Bf6+ {[%clk 0:00:03]} 48. Kd5 {[%clk 0:00:27]}  Rf3 {[%clk 0:00:03]} 49. b6 {[%clk 0:00:27]}  Rd3+ {[%clk 0:00:04]} 50. Kc6 {[%clk 0:00:26]}  Rc3 {[%clk 0:00:03]} 51. Kd5 {[%clk 0:00:25]}  Rd3+ {[%clk 0:00:04]} 52. Kc5 {[%clk 0:00:24]}  Bd4+ {[%clk 0:00:03]} 53. Kb5 {[%clk 0:00:23]}  Bxb6 {[%clk 0:00:03]} 54. Kxb6 {[%clk 0:00:24]}  Rxg3 {[%clk 0:00:03]} 55. Rc7 {[%clk 0:00:24]}  Rc3 {[%clk 0:00:01]} 56. Kc5 {[%clk 0:00:23]}  Rf3 {[%clk 0:00:01]} 57. Ne5 {[%clk 0:00:23]}  Rf5 {[%clk 0:00:02]} 58. Kd5 {[%clk 0:00:22]}  Rf4 {[%clk 0:00:03]} 59. Kd6 {[%clk 0:00:20]}  Rf6+ {[%clk 0:00:03]} 60. Kd5 {[%clk 0:00:21]}  Rf5 {[%clk 0:00:04]} 61. Ke4 {[%clk 0:00:20]}  Rf6 {[%clk 0:00:04]} 62. Nf3 {[%clk 0:00:19]}  Re6+ {[%clk 0:00:04]} 63. Kf4 {[%clk 0:00:20]}  Rf6+ {[%clk 0:00:05]} 64. Kg3 {[%clk 0:00:20]}  Rb6 {[%clk 0:00:05]} 65. Ng5 {[%clk 0:00:20]}  Rf6 {[%clk 0:00:05]} 66. Rd7 {[%clk 0:00:20]}  Rf5 {[%clk 0:00:05]} 67. Rc7 {[%clk 0:00:19]}  Kg8 {[%clk 0:00:06]} 68. Ne4 {[%clk 0:00:18]}  Kg7 {[%clk 0:00:05]} 69. Nd6 {[%clk 0:00:17]}  Rf6 {[%clk 0:00:02]} 70. Ne8+ {[%clk 0:00:17]} 1-0


[Site "https://www.chess.com"]